Cogmind - Beta 13 @@@ ROGUE MODE // 2024.05.24 @ 01:54:09 Player: TurnLeft25 Result: Destroyed by YI-UF0 with YI-UF0's Doublenader Performance ------------- Evolutions (0) 0 Regions Visited (2) 400 Robots Destroyed (2) 10 Value Destroyed (81) 81 Prototype IDs (2) 40 Alien Tech Used (0) 0 Bonus (0) 0 TOTAL SCORE: 531 Bonus ------- None Cogmind --------- Core Integrity 0/250 Matter 275/300 Energy 82/100 System Corruption 0% Temperature Cool (40) Movement Core (200) Ox3 Location -10/Mines Parts ------- > --- POWER (1) -------- (None) > --- PROPULSION (2) --- (None) > --- UTILITY (2) ------ Small Storage Unit > --- WEAPON (2) ------- Medium Laser Light Cannon > --- INVENTORY (8) ---- Ion Engine Light Treads Light Treads Heat Sink Grenade Launcher Mining Laser Peak State ------------ > --- POWER ------------ Light Ion Engine > --- PROPULSION ------- Aluminum Leg Aluminum Leg > --- UTILITY ---------- Heat Sink Small Storage Unit > --- WEAPON ----------- Medium Laser Light Assault Rifle > --- INVENTORY -------- Ion Engine Light Treads Light Treads Light Cannon Grenade Launcher Mining Laser [Rating: 7] Favorites ----------- Power Light Ion Engine Engine Light Ion Engine Propulsion Aluminum Leg Leg Aluminum Leg Utility Small Storage Unit Device Sensor Array Storage Small Storage Unit Weapon Medium Laser Energy Gun Medium Laser Ballistic Gun Light Assault Rifle Ballistic Cannon Light Cannon Launcher Grenade Launcher Build | -11 -10 -10 ------- Run | Yrd Mat Min Slots Evolved . | . . . Power . | . . . Propulsion . | . . . Utility . | . . . Weapon . | . . . Parts Attached 13 | 6 . 7 Power 1 | 1 . . Engine 1 | 1 . . Core . | . . . Reactor . | . . . Propulsion 4 | 2 . 2 Treads . | . . . Leg 4 | 2 . 2 Wheel . | . . . Hover . | . . . Flight . | . . . Utility 3 | 1 . 2 Device 2 | . . 2 Storage 1 | 1 . . Processor . | . . . Hackware . | . . . Protection . | . . . Artifact . | . . . Weapon 5 | 2 . 3 Energy Gun 2 | 1 . 1 Energy Cannon . | . . . Ballistic Gun 1 | 1 . . Ballistic Cannon 1 | . . 1 Launcher 1 | . . 1 Special Weapon . | . . . Impact Weapon . | . . . Slashing Weapon . | . . . Piercing Weapon . | . . . Special Melee Weapon . | . . . Unidentified Prototypes . | . . . Parts Lost 5 | . . 5 Power 1 | . . 1 Propulsion 2 | . . 2 Utility 1 | . . 1 Weapon 1 | . . 1 Highest Loss Streak 5 | . . 5 To Critical Strikes . | . . . Average Slot Usage (%) 91 | . 85 96 Engine 13 | . 14 13 Leg 27 | . 28 26 Device 7 | . . 12 Storage 14 | . 14 14 Energy Gun 13 | . 14 13 Ballistic Gun 14 | . 14 14 Naked Turns . | . . . Heaviest Build 12 | 11 11 12 Greatest Support 20 | 20 20 20 Greatest Overweight (x) . | . . . Average Overweight (x) . | . . . Largest Inventory Capacity 8 | 8 8 8 Average Capacity 7 | 7 8 8 Most Carried 8 | 5 6 8 Average Carried 5 | 2 4 6 Final Capacity 8 | 8 8 8 Final Carried 6 | 3 6 6 Class Distribution -------------------- 100% | Mutant Dominant Class ---------------- Mutant | -10/Materials Mutant | -10/Mines Resources | -11 -10 -10 ----------- Run | Yrd Mat Min Matter Collected 330 | 259 . 71 Remotely . | . . . Salvage Created 119 | . . 119 Parts 3 | . . 3 Haulers Intercepted . | . . . Recyclers Shooed . | . . . Parts Field Recycled . | . . . Retrieved Matter . | . . . Parts Self-Destructed . | . . . Prevented . | . . . Kills | -11 -10 -10 ------- Run | Yrd Mat Min Combat Hostiles Destroyed 5 | . . 5 Guns 3 | . . 3 AOE 2 | . . 2 Classes Destroyed 2 | . . 2 Grunt 2 | . . 2 Assembled 3 | . . 3 Best Kill Streak 3 | . . 3 Combat Bots Only 3 | . . 3 Max Kills in Single Turn 2 | . . 2 Gunslinging . | . . . Exploded 2 | . . 2 Melee . | . . . Uniques/NPCs Destroyed . | . . . Combat | -11 -10 -10 -------- Run | Yrd Mat Min Hostile Shots Fired 44 | . . 44 Missed 6 | . . 6 Damage Taken 844 | . . 844 Core 252 | . . 252 Absorbed by Shields . | . . . Core Remaining (%) 100 | 100 . . Volleys Fired 24 | . 3 21 Largest 2 | . 1 2 Hottest 85 | . 20 85 Shots Fired 45 | . 3 42 Gun 41 | . 3 38 Cannon 2 | . . 2 Launcher 2 | . . 2 Special . | . . . Kinetic 24 | . 3 21 Thermal 19 | . . 19 Explosive 2 | . . 2 Electromagnetic . | . . . Robot Hit Streak 8 | . 1 8 Robot Miss Streak 2 | . 2 2 Penetration Max . | . . . Secondary Targets . | . . . Shots Hit Robots 28 | . 1 27 Core Hits 12 | . . 12 Critical Kills . | . . . Critical Parts Destroyed . | . . . Critical Strikes 1 | . . 1 Burn 1 | . . 1 Melee Attacks . | . . . Impact . | . . . Slashing . | . . . Piercing . | . . . Sneak Attacks . | . . . Combat Hostiles . | . . . Follow-up Attacks . | . . . Damage Inflicted 386 | . 6 380 Guns 274 | . 6 268 Cannons 17 | . . 17 Explosions 95 | . . 95 Melee . | . . . Ramming . | . . . Kinetic 141 | . 6 135 Thermal 150 | . . 150 Explosive 95 | . . 95 Electromagnetic . | . . . Impact . | . . . Slashing . | . . . Piercing . | . . . Highest Corruption . | . . . Average Corruption . | . . . Corruption Purged . | . . . Corruption Blocked . | . . . Overload Shots . | . . . Overflow Damage . | . . . Projectiles . | . . . Explosions . | . . . Melee . | . . . Knockbacks . | . . . Impact . | . . . Kinetic . | . . . Secondary . | . . . Self-Inflicted Damage 38 | . . 38 Shots 1 | . . 1 Rammed . | . . . Targets Rammed . | . . . Kicked . | . . . Crushed . | . . . Highest Temperature 257 | . . 257 Average Temperature 99 | . . 99 Received Heat Transfer 257 | . . 257 Siege Activations . | . . . Robots Corrupted . | . . . Combat Hostiles . | . . . Parts Fried . | . . . Impact Corruptions . | . . . Robots Melted . | . . . Combat Hostiles . | . . . Parts Melted 2 | . . 2 Heat Transferred 518 | . . 518 Parts Sabotaged . | . . . Parts Stolen . | . . . Parts Stripped . | . . . Power Chain Reactions . | . . . Alert | -11 -10 -10 ------- Run | Yrd Mat Min Peak Influence 67 | . . 67 Initial . | . . . Average 24 | . . 47 Maximum Alert Level . | . . . Low Security (%) 100 | 100 100 100 Level 1 . | . . . Level 2 . | . . . Level 3 . | . . . Level 4 . | . . . Level 5 . | . . . High Security . | . . . Max Security . | . . . Squads Dispatched 1 | . 1 . Investigation . | . . . Extermination . | . . . Reinforcement 1 | . 1 . Assault . | . . . Garrison . | . . . Intercept . | . . . Searches Triggered . | . . . Construction Impeded . | . . . Haulers Reinforced . | . . . Active Scanning Responses . | . . . Cargo Convoy Interrupts . | . . . Stealth | -11 -10 -10 --------- Run | Yrd Mat Min Distress Signals . | . . . Communications Jammed . | . . . Distress Signals . | . . . Times Spotted 7 | . . 7 Peak Tracking Total 4 | . . 4 Tactical Retreats 1 | . . 1 Traps | -11 -10 -10 ------- Run | Yrd Mat Min Traps Triggered . | . . . Indirectly . | . . . Trap Hack Attempts . | . . . Triggered . | . . . Disarmed . | . . . Reprogrammed . | . . . Reused . | . . . Traps Extracted . | . . . Installed . | . . . Triggered . | . . . Machines | -11 -10 -10 ---------- Run | Yrd Mat Min Machines Disabled . | . . . Max in Single Turn . | . . . Machines Repaired . | . . . Machines Dismantled . | . . . Machines Sabotaged . | . . . Overloaded Fab Kills . | . . . Hacking | -11 -10 -10 --------- Run | Yrd Mat Min Machines Accessed 1 | . 1 . Terminals 1 | . 1 . Fabricators . | . . . Repair Stations . | . . . Recycling Units . | . . . Scanalyzers . | . . . Garrison Access . | . . . Total Hacks 6 | . 6 . Successful 1 | . 1 . Failed 5 | . 5 . Catastrophic 1 | . 1 . Database Lockouts . | . . . Manual 5 | . 5 . Terminals 6 | . 6 . Fabricators . | . . . Repair Stations . | . . . Recycling Units . | . . . Scanalyzers . | . . . Garrison Access . | . . . Terminal Hacks 1 | . 1 . Prototype ID Bank 1 | . 1 . Fabricator Hacks . | . . . Repair Station Hacks . | . . . Recycling Unit Hacks . | . . . Scanalyzer . | . . . Garrison Access Hacks . | . . . Unauthorized Hacks . | . . . Terminals . | . . . Fabricators . | . . . Repair Stations . | . . . Recycling Units . | . . . Scanalyzers . | . . . Garrison Access . | . . . Data Cores Recovered . | . . . Used . | . . . Hacking Detections 1 | . 1 . Full Trace Events . | . . . Feedback Events . | . . . Feedback Blocked . | . . . Robot Schematics Acquired . | . . . Robots Built . | . . . Authchips . | . . . Time . | . . . Total Robot Build Rating . | . . . Part Schematics Acquired . | . . . Parts Built . | . . . Authchips . | . . . Time . | . . . Total Part Build Rating . | . . . Parts Repaired . | . . . Time . | . . . Parts Recycled . | . . . Recycled Matter . | . . . Retrieved Matter . | . . . Retrieved Components . | . . . Parts Scanalyzed . | . . . Part Schematics Acquired . | . . . Parts Damaged . | . . . Bothacking | -11 -10 -10 ------------ Run | Yrd Mat Min Used RIF Installer . | . . . Robots Hacked . | . . . Non-combat . | . . . Combat . | . . . Robot Hacks Applied . | . . . Relay Couplers Released . | . . . Fabnet Peak Effective % . | . . . Robots Rewired . | . . . Allies Hacked . | . . . Hacks Repelled . | . . . Allies | -11 -10 -10 -------- Run | Yrd Mat Min Total Allies . | . . . Largest Group . | . . . Highest-Rated Group . | . . . Highest-Rated Ally . | . . . Total Orders . | . . . Ally Attacks . | . . . Total Damage . | . . . Kills . | . . . Allies Corrupted . | . . . Allies Melted . | . . . Intel | -11 -10 -10 ------- Run | Yrd Mat Min Robot Analysis Total . | . . . Derelict Logs Recovered . | . . . Drone Launches . | . . . Drone Recoveries . | . . . Exploration | -11 -10 -10 ------------- Run | Yrd Mat Min Turns Passed 435 | 57 156 222 Spaces Moved 293 | 45 124 124 Core 14 | 14 . . Treads . | . . . Legs 279 | 31 124 124 Wheels . | . . . Hover . | . . . Flight . | . . . Fastest Speed 50 | 50 120 120 Average Speed 116 | 98 120 120 Slowest Speed 120 | 120 120 120 Overloaded Moves . | . . . Propulsion Burnouts . | . . . Robots Hopped . | . . . Cave-ins Triggered . | . . . Exploration Rate (%) 17 | 4 23 25 Regions Visited 2 Branch Regions 1 Pre-discovered Areas . | . . . Known Exits Taken . | . . . Unknown Exits Taken 2 | 1 1 . Scrap Searched 1 | . . 1 Spaces Dug . | . . . Terrain Destroyed 17 | . . 17 Melee . | . . . Projectile . | . . . AOE 17 | . . 17 Terrain Rammed . | . . . Walls Destroyed . | . . . Machines Disabled . | . . . Actions | -11 -10 -10 --------- Run | Yrd Mat Min Total 344 | 57 129 158 Wait . | . . . Move 291 | 44 123 124 Hop . | . . . Pick Up 14 | 7 3 4 Fast Attach 2 | 2 . . Attach 6 | 4 . 2 Detach . | . . . Swap 5 | . . 5 Drop 2 | . . 2 Fire 24 | . 3 21 Melee . | . . . Ram . | . . . Kick . | . . . Crush . | . . . Escape Stasis . | . . . Rewire . | . . . Trap . | . . . Miscellaneous . | . . . Route ------- -11/Scrapyard -10/Materials -10/Mines History --------- Turn | Location | Event 23 | -11/Scrapyard | Discovered new exit (range 16) 58 | -11/Scrapyard | Entered Materials 186 | -10/Materials | Discovered new exit (range 10) 214 | -10/Materials | Entered Mines 306 | -10/Mines | Build established: Mutant 364 | -10/Mines | Assembled infested the area 421 | -10/Mines | Core integrity fell below 50% 429 | -10/Mines | Core integrity fell below 20% 436 | -10/Mines | Destroyed by YI-UF0 with YI-UF0's Doublenader Last Messages --------------- dispatching Demolisher response squad. 00379_ as-15660 sneak attacks. 00379_ K-01 Serf destroyed. 00387_ as-76421 suffers critical hit (Burn). 00391_ as-87362 destroyed. 00391_ as-15660 destroyed. 00398_ Destroyed Asb. F-torch. 00398_ as-76421 destroyed. 00401_ Acquired 3 matter. 00402_ Acquired 10 matter. 00418_ YI-UF0 mumbles something. 00418_ The unstable cave ceiling collapses. 00418_ Acquired 4 matter. 00420_ The unstable cave ceiling collapses. 00420_ Aluminum Leg destroyed. 00425_ The unstable cave ceiling collapses. 00428_ Lgt. Ion Engine destroyed. 00430_ Lgt. Assault Rifle destroyed. 00434_ Sensor Array destroyed. 00435_ The unstable cave ceiling collapses. Map ----- +----------------------------------------------------+ | ??????????????#### #???????????????????????????? | | ?????????????## #??????????????????????????? | | ?????????????# ##?????????????????????????? | | ????????????## #?????????????????????????? | | ???????????## ##### #??????????????????? | | ??????????## #??????????????????? | | ?????????## ######???????????????????? | | ???????### #?????????????????????????? | | ??????## """ ##????????????????????????? | | ??????# """ ##???????????????????????? | | ??????# """ ! #???????????????????????? | | ??????# % ###??????????????????????? | | ??????## ##* #####??????????????????? | | ???????##### ## % #?????????????????? | | ???????????## ### ######???????????????????? | | ????????????####?# #????????????????????????? | | ?????????????????# ##???????????????????????? | | ?????????????????## ##??????????????????????? | | ?????????????????# #??#???????????????????? | | ?????????????????# ##? #???????????????????? | | ?????????????##### #### ????????????????????? | | ?????????????# # ##?#?????????????????? | | ?????????????# #%##????????????????? | | ?????????????# ## ### ##???????????? | | ?????????????# ### g =%= ????????? | | ?????????????# #?## @ # ?????????? | | ?????????????# #??# # ????????? | | ?????????????# #?## # ????????????? | | ?????????????# # ##?? ??????????? | | ?????????????# ## ####????? ?? ?????????? | | ?????????????# ## ##??????????????????????? | | ??????######## ### ##???????????????????????? | | ??????# %* #?# ?????????????????????????? | | ??????# ###### #?### ?????????????????????????? | | ??????# ##???# #???###?????????????????????????? | | ?????## ##??# #???????????????????????????????? | | ?????# #### #???????????????????????????????? | | ?????# ## ######??????????????????????????? | | ?????## #??????????????????????????? | | ??????## ### #??????????????????????????? | | ???????# #?# #??########????????????????? | | ??????# ##?# #??# #????????????????? | | ?????# #??# #### #????????????????? | | ?????# #??# == #????????????????? | | ?????## #??###### #????????????????? | | ??????### #???????# % #????????????????? | | ????????## #???????# % #????????????????? | | ?????????# #???????########????????????????? | | ?????????## ##???????????????????????????????? | | ??????????#####????????????????????????????????? | +----------------------------------------------------+ Best States ------------- Heat Dissipation 35 Energy Generation 10 Energy Capacity 125 Matter Stores 300 Matter Capacity 300 Sight Range 16 Robot Scan Range 14 Terrain Scan Density 10 Evasion (%) 55 Item Schematics ----------------- None Robot Schematics ------------------ None Fabricated ------------ Nothing Alien Tech Used ----------------- None Achievements -------------- None Challenges ------------ None Game ------ Seed ThrowingBiocellCalibrator Manual? 0 Play Time 00:05:33 Cumulative 33.2 hours Start 2024.05.23 @ 07:38:07 End 2024.05.24 @ 01:54:09 Sessions 3 Manual Loads 0 Difficulty Rogue Special Mode None Game No. 57 Rogue 57 Adventurer 0 Explorer 0 Win Type - Total 0 Types 0/0/0/0/0/0/0/0/0 Lore% 24 Gallery% 37 Achievement% 29 Wizard Run 0 Options --------- Layout 1 ASCII 0 Keyboard 0 Movement Mouse Keybinds 0 Fullscreen 1 Font 24/Smallcaps Map View 50x40 Zoom Use 0% Tactical HUD 1 Map Filters NONE Filters NONE Steam 1 RUN: c275172c-750b-453f-8c7a-b5003baeca20